bitfinex/quotes_SOLUSD_20220208
["timestamp","ask_amount","ask_price","bid_price","bid_amount"]
[1644288650641,61.3629,117.17,117.03,83.67295451]
[1644288650839,12.29,117.16,117.03,68.69799751]
[1644288651044,14.41097896,117.16,117.03,62.69799751]
[1644288651239,14.41097896,117.16,117.03,68.69799751]
[1644288651443,42.28544683,117.15,117.03,62.69799751]
[1644288651642,12.29,117.14,117.03,62.69799751]
[1644288651840,12.8166,117.13,117.03,62.69799751]
[1644288652041,62.16015883,117.13,117.03,62.69799751]
[1644288653042,25.1066,117.13,117.03,62.69799751]
[1644288654147,67.10986489,117.13,117.03,39.02849751]
[1644288654543,25.1066,117.13,117.03,39.02849751]
[1644288655645,12.29,117.13,117.07,0.24315584]
[1644288655844,25.1037,117.15,117.07,0.24315584]
[1644288656244,12.29,117.15,117.07,0.24315584]
[1644288656846,12.8127,117.16,117.07,0.24315584]
[1644288657047,42.7067,117.2,117.07,2.15581284]
[1644288657247,511.77641672,117.21,117.07,2.40581284]
[1644288657446,12.29,117.21,117.07,8.40581284]
[1644288657646,25.0971,117.21,117.07,49.14633127]
[1644288657846,25.0971,117.21,117.12,0.24315584]
[1644288657847,36.22436817,117.2,117.12,0.24315584]
[1644288658051,39.26307929,117.18,117.12,0.24315584]
[1644288658252,12.29,117.19,117.12,0.24315584]
[1644288658447,12.29,117.18,117.12,0.24315584]
[1644288658648,25.1005,117.18,117.12,0.24315584]
[1644288659050,25.3505,117.18,117.12,0.24315584]
[1644288659653,68.5282242,117.18,117.12,0.24315584]
[1644288667458,68.2782242,117.18,117.12,0.24315584]
[1644288671061,2.12097896,117.17,117.02,2.43478363]
[1644288671265,12.8207,117.11,117.0,500.0]
[1644288671464,12.29,117.1,117.0,500.0]
[1644288672164,42.43311631,117.09,117.01,44.91115]
[1644288672362,54.72311631,117.09,117.01,44.91115]
[1644288672562,12.29,117.09,117.01,44.91115]
[1644288672762,12.8218,117.07,117.01,44.91115]
[1644288674062,12.8218,117.07,117.01,42.82719655]
[1644288674263,12.3218,117.07,117.01,42.82719655]
[1644288674665,12.5718,117.07,117.01,42.82719655]
[1644288675787,12.5718,117.07,117.04,39.41808585]
[1644288676565,12.5718,117.07,117.05,3.03219997]
[1644288676764,12.5718,117.07,117.04,39.41808585]
[1644288678468,12.5718,117.07,117.05,6.06429997]
[1644288678969,12.5718,117.07,117.06,38.06169515]
[1644288680571,12.5718,117.07,117.03,1.1256338]
[1644288681671,12.5718,117.07,117.04,47.93782227]
[1644288681873,12.5718,117.07,117.05,3.03219997]
[1644288682071,12.5718,117.07,117.05,6.06429997]
[1644288682272,12.5718,117.07,117.06,45.49070097]
[1644288682673,12.8199,117.08,117.06,45.49070097]
[1644288682876,12.29,117.11,117.06,45.49070097]
[1644288683077,55.019,117.12,117.06,45.49070097]
[1644288684078,46.2435062,117.11,117.06,45.49070097]
[1644288684274,12.29,117.1,117.01,45.5592]
[1644288684674,55.0267,117.1,117.01,45.5592]
[1644288685274,12.8211,117.08,117.02,41.62700253]
[1644288687176,12.8187,117.09,117.02,41.62700253]
[1644288687676,12.8187,117.09,117.02,41.12700253]
[1644288688979,12.29,117.1,117.02,41.12700253]
[1644288688980,12.8176,117.1,117.02,41.12700253]
[1644288690588,42.7289,117.12,117.02,41.12700253]
[1644288690802,189.03302346,117.32,117.03,0.024]
[1644288690803,72.8768,117.17,117.03,0.024]
[1644288691007,85.1668,117.17,117.03,0.024]
[1644288691207,12.8125,117.15,117.04,12.29]
[1644288691405,12.8125,117.15,117.05,0.024]
[1644288691614,35.7988,117.19,117.07,12.8115]
[1644288691804,35.7988,117.19,117.08,41.60298941]
[1644288692005,12.29,117.19,117.08,41.60298941]
[1644288692203,12.29,117.19,117.08,41.85298941]
[1644288692404,12.29,117.19,117.08,84.54468941]
[1644288692603,36.39482596,117.18,117.08,84.29468941]
[1644288692804,36.39482596,117.18,117.08,41.60298941]
[1644288693208,36.64482596,117.18,117.08,41.60298941]
[1644288693804,0.25,117.18,117.08,41.60298941]
[1644288694205,12.54,117.2,117.08,41.60298941]
[1644288694605,12.8116,117.16,117.08,60.41458941]
[1644288695710,12.8096,117.18,117.08,60.66458941]
[1644288695907,78.7082,117.21,117.08,60.66458941]
[1644288696107,66.4182,117.21,117.09,24.343]
[1644288696307,66.4182,117.21,117.12,12.8074]
[1644288696708,66.4182,117.21,117.13,34.9199202]
[1644288696908,12.8077,117.19,117.13,34.9199202]
[1644288698911,44.39913139,117.18,117.13,34.9199202]
[1644288699112,12.8104,117.17,117.13,34.9199202]
[1644288701616,12.8086,117.19,117.13,34.9199202]
[1644288704217,13.0586,117.19,117.13,34.9199202]
[1644288705017,36.5288,117.21,117.13,47.7261202]
[1644288705220,12.8062,117.21,117.13,47.9761202]
[1644288705419,12.8062,117.21,117.13,47.7261202]
[1644288705619,12.8062,117.21,117.13,34.9199202]
[1644288705817,40.91577641,117.2,117.13,34.9199202]
[1644288706218,41.16577641,117.2,117.13,34.9199202]
[1644288707122,47.0715727,117.18,117.13,34.9199202]
[1644288707720,12.8095,117.18,117.13,34.9199202]
[1644288708020,0.25,117.2,117.13,34.9199202]
[1644288708220,67.2179,117.22,117.13,47.7266202]
[1644288708623,106.02340411,117.22,117.13,47.7266202]
[1644288709620,12.8064,117.2,117.13,47.7266202]
[1644288710023,57.26107717,117.2,117.13,47.7266202]
[1644288710220,12.8064,117.2,117.13,47.7266202]
[1644288711125,12.8064,117.2,117.13,53.7266202]
[1644288711822,12.8064,117.2,117.13,53.9766202]
[1644288712024,37.0804,117.22,117.13,53.9766202]
[1644288712424,12.8049,117.22,117.13,53.9766202]
[1644288712622,12.8049,117.22,117.13,55.86653462]
[1644288713023,23.7867,117.24,117.13,55.86653462]
[1644288713425,62.83689086,117.24,117.18,0.24404463]
[1644288713627,23.7867,117.24,117.18,0.24404463]
[1644288713826,12.8033,117.23,117.18,0.24404463]
[1644288715226,13.0533,117.23,117.18,0.24404463]
[1644288716727,12.8033,117.23,117.18,0.24404463]
[1644288717428,12.8022,117.24,117.18,0.24404463]
[1644288718630,12.8009,117.25,117.18,13.04554463]
[1644288718834,36.4595,117.27,117.18,13.29554463]
[1644288719030,24.1695,117.27,117.18,13.29554463]
[1644288719230,24.1695,117.27,117.18,13.04554463]
[1644288719429,24.1695,117.27,117.18,13.29554463]
[1644288719629,24.1695,117.27,117.19,41.67530238]
[1644288720032,12.8,117.26,117.19,54.47480238]
[1644288721134,13.05,117.26,117.19,54.47480238]
[1644288721536,0.25,117.26,117.19,54.47480238]
[1644288721733,24.1695,117.27,117.19,54.47480238]
[1644288721936,24.4195,117.27,117.19,54.47480238]
[1644288722133,24.4195,117.27,117.24,0.24404463]
[1644288722534,0.25,117.27,117.24,0.24404463]
[1644288722835,113.1,117.28,117.24,0.24404463]
[1644288723035,12.7992,117.27,117.24,0.24404463]
[1644288723637,41.29948586,117.26,117.24,0.24404463]
[1644288723939,12.7992,117.27,117.24,0.24404463]
[1644288724339,25.0892,117.27,117.24,0.24404463]
[1644288724557,27.21017896,117.27,117.24,0.24404463]
[1644288725160,22.10607537,117.26,117.16,6.0]
[1644288725359,12.805,117.23,117.14,30.8322]
[1644288725558,12.805,117.23,117.17,44.37317575]
[1644288725858,47.53887846,117.23,117.17,44.37317575]
[1644288726258,47.53887846,117.23,117.14,24.8322]
[1644288726463,61.94985742,117.23,117.13,24.8593]
[1644288726759,61.94985742,117.23,117.09,24.5744]
[1644288726960,61.94985742,117.23,117.1,22.8665]
[1644288727360,61.94985742,117.23,117.11,34.65197015]
[1644288727560,68.80188058,117.22,117.11,34.65197015]
[1644288727764,12.8133,117.19,117.11,34.65197015]
[1644288727962,12.29,117.18,117.11,34.65197015]
[1644288728162,54.9985,117.18,117.11,34.65197015]
[1644288728363,55.2485,117.18,117.11,34.65197015]
[1644288729563,12.8126,117.16,117.11,34.65197015]
[1644288731868,12.8099,117.17,117.11,34.65197015]
[1644288732466,12.29,117.19,117.11,34.65197015]
[1644288733570,12.8089,117.18,117.11,47.46117015]
[1644288733770,25.0989,117.18,117.16,1.1256338]
[1644288733973,12.8089,117.18,117.16,43.6160758]
[1644288734570,12.8089,117.18,117.17,6.06429997]
[1644288734970,12.8077,117.19,117.17,6.06429997]
[1644288735370,12.8077,117.19,117.16,43.6160758]
[1644288735573,13.0577,117.19,117.16,43.6160758]
[1644288737775,25.0964,117.21,117.17,6.06429997]
[1644288737976,12.8064,117.21,117.17,6.06429997]
[1644288738378,12.8064,117.21,117.18,35.2787697]
[1644288738978,12.8064,117.21,117.19,6.06429997]
[1644288739393,54.9759,117.24,117.2,42.490442]
[1644288739580,56.15777794,117.24,117.2,42.490442]
[1644288740882,56.40777794,117.24,117.2,42.490442]
[1644288741485,12.8044,117.22,117.2,42.490442]
[1644288741983,12.8044,117.22,117.2,45.52264197]
[1644288742182,12.8044,117.22,117.2,48.55474197]
[1644288745887,0.25,117.24,117.2,48.55474197]
[1644288745888,13.053,117.24,117.2,48.55474197]
[1644288746190,1.18187794,117.26,117.2,48.55474197]
[1644288746789,22.2456976,117.25,117.2,48.55474197]
[1644288747188,1.18187794,117.26,117.2,48.55474197]
[1644288747395,13.98307794,117.26,117.2,48.55474197]
[1644288747989,12.8012,117.26,117.2,48.55474197]
[1644288748791,13.98307794,117.26,117.2,48.55474197]
[1644288748992,12.8012,117.26,117.2,48.55474197]
[1644288749494,22.27060288,117.25,117.2,48.55474197]
[1644288751115,0.25,117.26,117.2,48.55474197]
[1644288751317,1.22121408,117.27,117.2,48.55474197]
[1644288751520,1.43187794,117.27,117.2,48.55474197]
[1644288752015,22.28325049,117.26,117.2,48.55474197]
[1644288753216,22.28325049,117.26,117.2,61.60384197]
[1644288755821,28.58891025,117.29,117.2,61.60384197]
[1644288756121,23.6922,117.32,117.23,12.7954]
[1644288756122,2.36531312,117.31,117.23,12.7954]
[1644288756325,23.6922,117.32,117.23,13.0454]
[1644288756725,23.6922,117.32,117.24,35.2787697]
[1644288756924,60.71648303,117.32,117.24,35.2787697]
[1644288757123,60.71648303,117.32,117.24,35.5287697]
[1644288757324,12.794,117.32,117.24,48.3231697]
[1644288757524,13.044,117.32,117.24,48.3231697]
[1644288757724,12.794,117.32,117.24,48.3231697]
[1644288758730,60.12492406,117.33,117.24,48.3231697]
[1644288758731,22.5607,117.33,117.24,48.3231697]
[1644288758933,12.7934,117.34,117.24,48.3231697]
[1644288759534,12.7934,117.34,117.24,50.21308403]
[1644288759730,46.8659,117.36,117.24,56.21308403]
[1644288759930,59.6565,117.36,117.27,12.7903]
[1644288760131,59.6565,117.36,117.28,35.2787697]
[1644288760430,42.35711267,117.35,117.28,35.2787697]
[1644288761032,55.14931267,117.35,117.28,35.2787697]
[1644288761230,55.39931267,117.35,117.28,35.2787697]
[1644288764634,55.14931267,117.35,117.28,35.2787697]
[1644288766236,55.39931267,117.35,117.28,35.2787697]
[1644288766541,55.39931267,117.35,117.26,12.7922]
[1644288766735,170.62029163,117.35,117.25,47.0815]
[1644288766937,185.27560475,117.35,117.25,47.0815]
[1644288767536,182.91029163,117.35,117.25,47.0815]
[1644288767738,182.91029163,117.35,117.26,40.18056709]
[1644288767942,185.27560475,117.35,117.26,40.18056709]
[1644288769744,185.27560475,117.35,117.22,23.3587]
[1644288769941,2.36063186,117.34,117.22,70.4574]
[1644288770143,12.7976,117.31,117.22,70.4574]
[1644288770342,12.7976,117.31,117.18,42.6587]
[1644288770543,2.12097896,117.3,117.16,47.0987]
[1644288770744,113.1,117.28,117.19,12.799]
[1644288770943,36.79272843,117.27,117.2,30.43922081]
[1644288771349,49.59322843,117.27,117.18,23.5924]
[1644288771745,49.63215954,117.27,117.18,23.5924]
[1644288772349,49.63215954,117.27,117.19,42.02151195]
[1644288773447,12.83943111,117.27,117.19,42.02151195]
[1644288773649,0.03893111,117.27,117.19,42.02151195]
[1644288773847,113.13893111,117.28,117.19,42.02151195]
[1644288774047,0.03893111,117.27,117.19,42.02151195]
[1644288774246,0.03893111,117.28,117.19,42.27151195]
[1644288774647,0.03893111,117.28,117.19,55.07111195]
[1644288774849,0.03893111,117.28,117.19,64.30511195]
[1644288775649,12.7963,117.3,117.19,64.30511195]
[1644288775847,0.03893111,117.29,117.19,88.89281195]
[1644288776450,0.03893111,117.29,117.19,94.89281195]
[1644288777079,115.46531312,117.33,117.19,94.89281195]
[1644288777281,0.03903087,117.28,117.2,37.61073567]
[1644288777482,0.03903087,117.32,117.22,12.7917]
[1644288777776,0.03903087,117.28,117.23,35.0079]
[1644288777977,0.03903087,117.31,117.25,35.74769975]
[1644288778176,0.03903087,117.35,117.27,42.02151195]
[1644288778377,40.20063667,117.36,117.27,42.02151195]
[1644288778776,40.20063667,117.36,117.27,42.27151195]
[1644288778978,53.24123667,117.36,117.27,65.26171195]
[1644288779579,53.24123667,117.36,117.27,65.51171195]
[1644288780981,53.24123667,117.36,117.27,65.26171195]
[1644288781680,55.36221563,117.36,117.26,22.7179]
[1644288781881,12.29,117.35,117.18,12.29]
[1644288782080,0.03903087,117.34,117.2,23.6219]
[1644288782280,12.7991,117.3,117.2,23.6219]
[1644288782483,0.03903087,117.29,117.2,23.6219]
[1644288782680,35.41452037,117.29,117.21,41.93763207]
[1644288783079,35.45355124,117.29,117.21,41.93763207]
[1644288783679,34.55731213,117.27,117.21,41.93763207]
[1644288783885,34.55731213,117.27,117.19,31.8885]
[1644288784080,34.596343,117.27,117.19,31.8885]
[1644288784280,34.80731213,117.27,117.19,31.8885]
[1644288784479,34.80731213,117.27,117.19,9.234]
[1644288784679,12.8018,117.26,117.19,9.234]
[1644288784880,12.8018,117.26,117.2,40.27490554]
[1644288785083,47.74186484,117.25,117.2,40.27490554]
[1644288785480,0.28903087,117.27,117.2,40.27490554]
[1644288785681,0.25,117.27,117.19,9.234]
[1644288785880,0.28903087,117.27,117.19,9.234]
[1644288786681,0.28903087,117.27,117.19,50.04785554]
[1644288786682,36.1079347,117.24,117.19,50.04785554]
[1644288787083,12.8021,117.25,117.19,50.04785554]
[1644288789084,61.39448998,117.26,117.19,50.04785554]
[1644288789684,61.39448998,117.26,117.19,62.84825554]
[1644288790293,61.64448998,117.26,117.19,62.84825554]
[1644288790694,61.64448998,117.26,117.19,50.04785554]
[1644288791988,61.64448998,117.26,117.19,40.81385554]
[1644288792893,61.64448998,117.26,117.19,42.99427054]
[1644288793690,61.64448998,117.26,117.19,48.99427054]
[1644288797499,61.64448998,117.26,117.19,61.79487054]
[1644288800102,0.03903087,117.27,117.19,61.79487054]
[1644288800301,12.7993,117.27,117.19,63.93540621]
[1644288800501,0.03903087,117.27,117.19,63.93540621]
[1644288800804,0.03903087,117.29,117.19,63.93540621]
[1644288801601,12.83703087,117.29,117.19,63.93540621]
[1644288801902,45.87570403,117.28,117.19,63.93540621]
[1644288802604,0.03903087,117.28,117.19,63.93540621]
[1644288803622,58.21233877,117.3,117.19,63.93540621]
[1644288805323,58.46233877,117.3,117.19,63.93540621]
[1644288805927,58.46233877,117.3,117.2,22.5109]
[1644288806125,58.46233877,117.3,117.22,12.7965]
[1644288806326,58.46233877,117.3,117.23,40.81385554]
[1644288806528,58.4233079,117.3,117.23,40.81385554]
[1644288807127,13.0455,117.3,117.23,40.81385554]
[1644288807425,13.0455,117.3,117.23,53.60995554]
[1644288808228,58.50380149,117.3,117.23,53.60995554]
[1644288808728,58.50380149,117.3,117.23,12.7961]
[1644288808930,12.29,117.29,117.19,2.180415]
[1644288809131,12.8018,117.26,117.19,2.180415]
[1644288809729,48.45160758,117.25,117.19,38.01757153]
[1644288810932,12.8033,117.24,117.19,38.01757153]
[1644288812133,12.8033,117.24,117.19,35.83715653]
[1644288812635,45.52504692,117.25,117.19,35.83715653]
[1644288812933,45.77504692,117.25,117.19,35.83715653]
[1644288813134,0.03903087,117.27,117.19,35.83715653]
[1644288813334,79.65093087,117.28,117.19,48.63735653]
[1644288813537,0.03903087,117.27,117.19,48.63735653]
[1644288814033,34.70037925,117.27,117.19,48.63735653]
[1644288814232,34.73941012,117.27,117.19,48.63735653]
[1644288814433,12.7991,117.26,117.19,48.63735653]
[1644288816536,13.0491,117.26,117.19,48.63735653]
[1644288817737,0.03903087,117.28,117.19,48.63735653]
[1644288817938,0.03903087,117.28,117.19,48.88735653]
[1644288818138,0.03903087,117.29,117.19,54.88735653]
[1644288818338,0.03903087,117.31,117.19,54.88735653]
[1644288818541,0.03903087,117.31,117.2,24.8294]
[1644288818741,44.34625946,117.31,117.24,35.83715653]
[1644288818938,44.30722859,117.31,117.24,35.83715653]
[1644288819140,57.10142859,117.31,117.24,35.83715653]
[1644288819839,57.10142859,117.31,117.24,12.7951]
[1644288820039,59.22240755,117.31,117.22,24.8294]
[1644288820239,71.51240755,117.31,117.22,25.0794]
[1644288820839,71.51240755,117.31,117.23,34.33958471]
[1644288821040,71.76240755,117.31,117.23,34.33958471]
[1644288822541,66.76240755,117.31,117.23,34.33958471]
[1644288823543,66.76240755,117.31,117.23,47.13618471]
[1644288824144,66.76240755,117.31,117.23,12.7966]
[1644288824543,66.76240755,117.31,117.22,25.0794]
[1644288824745,66.76240755,117.31,117.22,37.8771]
[1644288825043,66.76240755,117.31,117.29,0.52258042]
[1644288825445,64.64142859,117.31,117.29,0.52258042]
[1644288827043,66.76240755,117.31,117.29,0.52258042]
[1644288827244,64.64142859,117.31,117.29,0.52258042]
[1644288827746,66.76240755,117.31,117.29,0.52258042]
[1644288828847,66.76240755,117.31,117.23,2.180415]
[1644288829048,69.16675154,117.31,117.23,2.180415]
[1644288829448,97.81095349,117.31,117.23,2.180415]
[1644288830248,12.8024,117.28,117.23,2.180415]
[1644288830450,12.29,117.27,117.23,2.180415]
[1644288831048,46.21425617,117.26,117.23,2.180415]
[1644288831548,59.01665617,117.26,117.23,2.180415]
[1644288832149,13.0524,117.26,117.23,2.180415]
[1644288832650,12.8024,117.26,117.23,2.180415]
[1644288833750,13.0524,117.26,117.23,2.180415]
[1644288836253,13.0524,117.26,117.24,6.06429997]
[1644288838355,0.25,117.26,117.24,51.05869376]
[1644288838753,12.7978,117.27,117.24,51.05869376]
[1644288839453,12.7971,117.28,117.24,51.05869376]
[1644288839657,45.06124399,117.31,117.24,51.05869376]
[1644288839854,0.03903087,117.3,117.24,51.30869376]
[1644288840057,0.03903087,117.32,117.24,51.30869376]
[1644288840455,45.66279879,117.34,117.24,51.30869376]
[1644288840659,0.03903087,117.33,117.24,51.30869376]
[1644288840857,12.83173087,117.33,117.24,63.85449376]
[1644288841058,42.99904747,117.32,117.24,63.85449376]
[1644288841662,43.24904747,117.32,117.24,63.85449376]
[1644288842563,40.359924,117.29,117.24,63.85449376]
[1644288842963,40.359924,117.29,117.24,18.86009997]
[1644288843565,40.359924,117.29,117.24,6.06429997]
[1644288844366,53.156224,117.29,117.24,6.06429997]
[1644288844584,53.156224,117.29,117.23,2.180415]
[1644288844785,55.27720296,117.29,117.23,2.180415]
[1644288845585,57.64251608,117.29,117.23,2.180415]
[1644288846387,57.89251608,117.29,117.23,2.180415]
[1644288846786,76.92285559,117.29,117.23,2.180415]
[1644288851090,12.29,117.28,117.23,2.180415]
[1644288851291,10.621985,117.27,117.18,12.8017]
[1644288851591,12.74296396,117.27,117.18,12.8017]
[1644288852090,36.12874095,117.26,117.18,12.8017]
[1644288853292,36.12874095,117.26,117.18,55.23387942]
[1644288853596,12.8021,117.24,117.18,55.23387942]
[1644288853793,48.24399532,117.24,117.18,55.23387942]
[1644288855194,48.49399532,117.24,117.18,55.23387942]
[1644288864608,48.49399532,117.24,117.18,61.23387942]
[1644288865008,13.0521,117.24,117.18,61.23387942]
[1644288865209,12.8021,117.24,117.18,61.23387942]
[1644288866811,12.8001,117.25,117.18,61.23387942]
[1644288867410,12.8001,117.25,117.18,55.23387942]
[1644288867612,46.00536282,117.24,117.18,55.23387942]
[1644288870835,12.8001,117.25,117.18,55.23387942]
[1644288872237,51.45276995,117.25,117.18,55.23387942]
[1644288872437,51.70276995,117.25,117.18,55.23387942]
[1644288872737,51.70276995,117.25,117.18,55.25787942]
[1644288875944,1.1888077,117.24,117.18,55.25787942]
[1644288876144,47.96436696,117.23,117.18,55.23387942]
[1644288877046,13.9900077,117.24,117.18,55.23387942]
[1644288878747,42.14885017,117.23,117.18,55.23387942]
[1644288879847,42.39885017,117.23,117.18,55.23387942]
[1644288880747,0.25,117.23,117.18,55.23387942]
[1644288880948,13.9900077,117.24,117.18,55.23387942]
[1644288881751,52.31076424,117.24,117.18,55.23387942]
[1644288883451,52.56076424,117.24,117.18,55.23387942]
[1644288885954,14.2400077,117.24,117.18,55.23387942]
[1644288888754,13.9900077,117.24,117.18,55.23387942]
[1644288888955,12.8012,117.24,117.18,55.23387942]
[1644288890756,36.13875684,117.23,117.18,55.23387942]
[1644288890958,36.13875684,117.23,117.17,0.024]
[1644288890959,48.94065684,117.23,117.17,0.024]
[1644288891157,48.94065684,117.23,117.16,0.024]
[1644288891158,50.12946454,117.23,117.16,0.024]
[1644288891360,1.1888077,117.22,117.13,0.024]
[1644288891559,1.1888077,117.21,117.13,0.024]
[1644288891759,13.4788077,117.2,117.13,0.024]
[1644288891958,13.4788077,117.2,117.09,1.21842706]
[1644288891959,1.1888077,117.19,117.11,0.024]
[1644288892159,60.37813935,117.18,117.11,0.024]
[1644288892360,69.32813935,117.18,117.11,0.024]
[1644288892560,69.57813935,117.18,117.11,0.024]
[1644288892961,12.8126,117.17,117.11,0.024]
[1644288893163,12.8126,117.17,117.09,50.970375]
[1644288893361,48.31552533,117.16,117.09,50.970375]
[1644288894364,48.31552533,117.16,117.09,63.780275]
[1644288894365,61.12542533,117.16,117.09,63.780275]
[1644288894565,12.8099,117.16,117.09,63.780275]
[1644288894768,43.8856077,117.2,117.09,64.030275]
[1644288895066,13.4788077,117.21,117.1,24.269]
[1644288895270,13.4788077,117.21,117.11,0.024]
[1644288895667,36.54220381,117.2,117.11,38.36941712]
[1644288895867,12.8084,117.18,117.12,0.024]
[1644288896068,47.72680354,117.18,117.11,51.17641712]
[1644288896469,47.72680354,117.18,117.11,51.42641712]
[1644288896669,12.29,117.21,117.11,51.42641712]
[1644288896870,12.29,117.21,117.12,0.024]
[1644288897105,12.8067,117.19,117.12,12.8303]
[1644288897694,46.23417334,117.18,117.12,12.8303]
[1644288897897,46.23417334,117.18,117.12,12.8063]
[1644288899196,46.23417334,117.18,117.13,34.71744493]
[1644288899597,46.23417334,117.18,117.13,47.52314493]
[1644288901501,46.23417334,117.18,117.13,12.8057]
[1644288903100,46.23417334,117.18,117.12,0.024]
[1644288903306,46.23417334,117.18,117.11,12.8312]
[1644288904104,46.48417334,117.18,117.11,57.54040605]
[1644288904503,59.29207334,117.18,117.11,57.54040605]
[1644288904808,0.25,117.18,117.11,57.54040605]
[1644288905008,54.9829,117.21,117.11,57.54040605]
[1644288905206,55.2329,117.21,117.12,0.024]
[1644288905408,55.2329,117.21,117.12,12.8305]
[1644288905605,55.2329,117.21,117.12,37.6407]
[1644288905911,35.94285027,117.2,117.13,37.20295627]
[1644288906507,12.8067,117.19,117.13,37.20295627]
[1644288906706,37.45098806,117.18,117.13,37.20295627]
[1644288907708,37.45098806,117.18,117.12,24.8342]
[1644288907709,50.25868806,117.18,117.12,24.8342]
[1644288907915,50.25868806,117.18,117.1,0.024]
[1644288910312,50.50868806,117.18,117.1,0.024]
[1644288915119,50.50868806,117.18,117.1,1.90931894]
[1644288915120,50.25868806,117.18,117.1,1.90931894]
[1644288915319,50.25868806,117.18,117.11,35.45928771]
[1644288915520,50.25868806,117.18,117.11,35.48328771]
[1644288916223,50.25868806,117.18,117.11,41.48328771]
[1644288916420,50.25868806,117.18,117.11,35.48328771]
[1644288916623,50.25868806,117.18,117.11,48.29068771]
[1644288918725,50.50868806,117.18,117.11,48.29068771]
[1644288920524,50.50868806,117.18,117.11,35.48328771]
[1644288922228,1.1888077,117.2,117.11,48.54118771]
[1644288922427,1.1888077,117.21,117.12,23.3784]
[1644288922628,24.4394,117.22,117.12,29.3784]
[1644288922829,24.4394,117.22,117.12,29.6284]
[1644288923229,24.4394,117.22,117.13,42.83340772]
[1644288923454,43.73362507,117.21,117.14,0.024]
[1644288923651,43.73362507,117.21,117.14,12.8022]
[1644288923856,43.73362507,117.21,117.15,40.4583844]
[1644288924254,43.73362507,117.21,117.15,40.7083844]
[1644288924751,24.4394,117.22,117.15,40.7083844]
[1644288924953,24.4394,117.22,117.15,40.7323844]
[1644288925153,24.4394,117.22,117.15,46.7323844]
[1644288925353,24.4394,117.22,117.15,40.7323844]
[1644288925554,37.2427,117.22,117.16,12.8033]
[1644288925753,1.1888077,117.24,117.16,13.0533]
[1644288925957,1.1888077,117.25,117.16,36.8632]
[1644288926154,1.1888077,117.26,117.17,0.024]
[1644288926556,1.1888077,117.27,117.17,0.024]
[1644288926755,35.63672006,117.26,117.17,42.85740772]
[1644288927154,35.63672006,117.26,117.17,49.10740772]
[1644288927553,48.43622006,117.26,117.19,12.7988]
[1644288927754,48.43622006,117.26,117.19,47.45286497]
[1644288929054,48.43622006,117.26,117.17,6.024]
[1644288929354,51.74600672,117.26,117.17,0.024]
[1644288929554,51.74600672,117.26,117.14,24.1876]
[1644288929756,1.1888077,117.25,117.15,0.024]
[1644288929955,12.8044,117.22,117.15,38.72789058]
[1644288930156,49.7090713,117.22,117.15,38.72789058]
[1644288931657,49.7090713,117.22,117.15,51.53269058]
[1644288935165,12.8044,117.22,117.15,51.53269058]
[1644288935664,12.8044,117.22,117.15,51.78269058]
[1644288936065,50.72650228,117.22,117.15,51.53269058]
[1644288936466,12.8023,117.23,117.15,51.53269058]
[1644288936666,12.8023,117.23,117.15,51.78269058]
[1644288936866,13.0523,117.23,117.15,51.53269058]
[1644288937469,50.2963414,117.23,117.15,51.53269058]
[1644288937870,13.0523,117.23,117.15,51.78269058]
[1644288940572,46.38872039,117.22,117.15,51.78269058]
[1644288940773,59.19182039,117.22,117.15,51.78269058]
[1644288941678,12.8031,117.22,117.15,51.78269058]
[1644288942875,12.8031,117.22,117.15,51.53269058]
[1644288944278,12.8031,117.22,117.15,51.78269058]
[1644288944877,41.99233788,117.21,117.15,51.78269058]
[1644288945078,41.99233788,117.21,117.15,51.50869058]
[1644288946881,12.8031,117.22,117.15,51.50869058]
[1644288947081,12.8031,117.22,117.15,51.53269058]
[1644288948081,53.56235757,117.22,117.15,51.53269058]
[1644288949182,53.56235757,117.22,117.15,12.8288]
[1644288949485,53.56235757,117.22,117.08,1.21842706]
[1644288949486,12.8105,117.18,117.08,1.21842706]
[1644288949701,12.8105,117.18,117.06,1.21842706]
[1644288949900,13.9993077,117.18,117.05,1.21842706]
[1644288950303,35.10532891,117.17,117.06,41.58399866]
[1644288950510,35.10532891,117.17,117.07,24.4226]
[1644288950704,35.35532891,117.17,117.08,41.70779346]
[1644288950902,48.16592891,117.17,117.08,41.70779346]
[1644288952602,48.16592891,117.17,117.08,54.51809346]
[1644288958107,12.8106,117.17,117.08,54.76809346]